fUST/lending_fUST_20240803
["ID","MTS","AMOUNT","RATE_DAILY","PERIOD"]
[334040275,1722700246509,-541.83,0.00015068,2]
[334040278,1722700246519,-500.0,0.00015068,2]
[334040281,1722700246528,-1733.26,0.00015068,2]
[334040284,1722700246538,-500.0,0.00015068,2]
[334040287,1722700246547,-500.0,0.00015068,2]
[334040290,1722700246560,-500.0,0.00015068,2]
[334040293,1722700246570,-500.0,0.00015068,2]
[334040296,1722700246579,-500.0,0.00015068,2]
[334040299,1722700246588,-500.0,0.00015068,2]
[334040302,1722700246597,-544.74,0.00015068,2]
[334040305,1722700246607,-500.0,0.00015068,2]
[334040308,1722700246617,-500.0,0.00015068,2]
[334040311,1722700246627,-1373.13,0.00015068,2]
[334040314,1722700246637,-500.0,0.00015068,2]
[334040318,1722700246647,-500.0,0.00015068,2]
[334040321,1722700246657,-500.0,0.00015068,2]
[334040324,1722700246668,-500.0,0.00015068,2]
[334040327,1722700246677,-500.0,0.00015068,2]
[334040330,1722700246687,-500.0,0.00015068,2]
[334040333,1722700246697,-500.0,0.00015068,2]
[334040335,1722700246706,-500.0,0.00015068,2]
[334040338,1722700246715,-500.0,0.00015068,2]
[334040341,1722700246725,-500.0,0.00015068,2]
[334040344,1722700246734,-500.0,0.00015068,2]
[334040347,1722700246743,-536.02,0.00015068,2]
[334040350,1722700246752,-500.0,0.00015068,2]
[334040353,1722700246762,-500.0,0.00015068,2]
[334040356,1722700246772,-1869.78,0.00015068,2]
[334040359,1722700246782,-500.0,0.00015068,2]
[334040362,1722700246792,-500.0,0.00015068,2]
[334040374,1722700246886,-500.0,0.00015068,2]
[334040377,1722700246897,-500.0,0.00015068,2]
[334040379,1722700246907,-1161.84,0.00015068,2]
[334040381,1722700246921,-500.0,0.00015068,2]
[334040383,1722700246931,-500.0,0.00015068,2]
[334040384,1722700246940,-500.0,0.00015068,2]
[334040386,1722700246949,-763.63,0.00015068,2]
[334040388,1722700246961,-500.0,0.00015068,2]
[334040390,1722700246971,-500.0,0.00015068,2]
[334040392,1722700246980,-500.0,0.00015068,2]
[334040394,1722700246991,-519.62,0.00015068,2]
[334040396,1722700247000,-500.0,0.00015068,2]
[334040398,1722700247010,-500.0,0.00015068,2]
[334040400,1722700247020,-500.0,0.00015068,2]
[334040403,1722700247030,-500.0,0.00015068,2]
[334040405,1722700247039,-500.0,0.00015068,2]
[334040407,1722700247049,-500.0,0.00015068,2]
[334040409,1722700247065,-500.0,0.00015068,2]
[334040411,1722700247076,-1137.92,0.00015068,2]
[334040413,1722700247087,-500.0,0.00015068,2]
[334040415,1722700247096,-1049.92,0.00015068,2]
[334040417,1722700247106,-636.644475,0.00015132,2]
[334040419,1722700247115,-756.781455,0.00015132,2]
[334040421,1722700247125,-298.784417,0.00015132,2]
[334040423,1722700247134,-395.303891,0.00015132,2]
[334040425,1722700247143,-756.781456,0.00015132,2]
[334040427,1722700247153,-636.644476,0.00015132,2]
[334040429,1722700247162,-150.0,0.00015214,2]
[334040431,1722700247172,-506.0,0.00015214,2]
[334040433,1722700247181,-1410.0,0.00015214,2]
[334040435,1722700247190,-213.275,0.00015214,2]
[334040437,1722700247200,-3200.0,0.00015276,2]
[334040439,1722700247209,-636.644475,0.00015314,2]
[334040441,1722700247219,-756.781455,0.00015314,2]
[334040443,1722700247228,-298.784417,0.00015314,2]
[334040445,1722700247238,-395.303891,0.00015314,2]
[334040447,1722700247248,-756.781456,0.00015314,2]
[334040449,1722700247258,-636.644476,0.00015314,2]
[334040451,1722700247268,-1544.75,0.00015341,2]
[334040453,1722700247277,-500.0,0.00015342,2]
[334040455,1722700247286,-500.0,0.00015342,2]
[334040456,1722700247296,-576.59,0.00015342,2]
[334040457,1722700247305,-428.17882341,0.00015342,2]
[334040458,1722700247320,-500.0,0.00015342,2]
[334040460,1722700247330,-500.0,0.00015342,2]
[334040462,1722700247340,-534.35,0.00015342,2]
[334040464,1722700247349,-500.0,0.00015342,2]
[334040466,1722700247358,-500.0,0.00015342,2]
[334040468,1722700247367,-500.0,0.00015342,2]
[334040470,1722700247377,-500.0,0.00015342,2]
[334040472,1722700247387,-500.0,0.00015342,2]
[334040474,1722700247397,-500.0,0.00015342,2]
[334040476,1722700247406,-594.51,0.00015342,2]
[334040477,1722700247416,-856.72,0.00015342,2]
[334040478,1722700247426,-541.83,0.00015342,2]
[334040479,1722700247436,-500.0,0.00015342,2]
[334040480,1722700247446,-1733.26,0.00015342,2]
[334040481,1722700247455,-500.0,0.00015342,2]
[334040482,1722700247465,-500.0,0.00015342,2]
[334040483,1722700247476,-500.0,0.00015342,2]
[334040484,1722700247486,-545.08,0.00015342,2]
[334040485,1722700247496,-500.0,0.00015342,2]
[334040486,1722700247506,-500.0,0.00015342,2]
[334040487,1722700247515,-544.74,0.00015342,2]
[334040488,1722700247526,-500.0,0.00015342,2]
[334040489,1722700247536,-500.0,0.00015342,2]
[334040490,1722700247546,-1373.13,0.00015342,2]
[334040491,1722700247556,-500.0,0.00015342,2]
[334040492,1722700247569,-500.0,0.00015342,2]
[334040493,1722700247579,-500.0,0.00015342,2]
[334040494,1722700247589,-500.0,0.00015342,2]
[334040495,1722700247598,-500.0,0.00015342,2]
[334040496,1722700247607,-500.0,0.00015342,2]
[334040497,1722700247617,-500.0,0.00015342,2]
[334040498,1722700247627,-500.0,0.00015342,2]
[334040499,1722700247639,-500.0,0.00015342,2]
[334040500,1722700247649,-500.0,0.00015342,2]
[334040501,1722700247659,-500.0,0.00015342,2]
[334040503,1722700247669,-536.02,0.00015342,2]
[334040504,1722700247679,-500.0,0.00015342,2]
[334040506,1722700247689,-500.0,0.00015342,2]
[334040508,1722700247699,-1869.78,0.00015342,2]
[334040510,1722700247709,-510.39964594,0.00015342,2]
[334040512,1722700247718,-500.0,0.00015342,2]
[334040514,1722700247728,-500.0,0.00015342,2]
[334040516,1722700247738,-586.63,0.00015342,2]
[334040517,1722700247748,-1161.84,0.00015342,2]
[334040519,1722700247757,-500.0,0.00015342,2]
[334040520,1722700247767,-500.0,0.00015342,2]
[334040521,1722700247777,-500.0,0.00015342,2]
[334040522,1722700247786,-763.63,0.00015342,2]
[334040523,1722700247795,-500.0,0.00015342,2]
[334040524,1722700247805,-500.0,0.00015342,2]
[334040525,1722700247818,-500.0,0.00015342,2]
[334040526,1722700247828,-519.62,0.00015342,2]
[334040527,1722700247838,-500.0,0.00015342,2]
[334040528,1722700247847,-500.0,0.00015342,2]
[334040529,1722700247856,-500.0,0.00015342,2]
[334040531,1722700247866,-500.0,0.00015342,2]
[334040533,1722700247876,-500.0,0.00015342,2]
[334040534,1722700247887,-500.0,0.00015342,2]
[334040536,1722700247897,-500.0,0.00015342,2]
[334040538,1722700247910,-1137.92,0.00015342,2]
[334040540,1722700247920,-500.0,0.00015342,2]
[334040542,1722700247930,-1049.92,0.00015342,2]
[334040543,1722700247940,-500.0,0.00015616,2]
[334040544,1722700247951,-500.0,0.00015616,2]
[334040546,1722700247961,-635.53,0.00015616,2]
[334040548,1722700247971,-500.0,0.00015616,2]
[334040550,1722700247982,-500.0,0.00015616,2]
[334040551,1722700247993,-500.0,0.00015616,2]
[334040552,1722700248002,-500.0,0.00015616,2]
[334040554,1722700248012,-500.0,0.00015616,2]
[334040555,1722700248022,-594.51,0.00015616,2]
[334040557,1722700248034,-856.72,0.00015616,2]
[334040559,1722700248044,-541.83,0.00015616,2]
[334040561,1722700248054,-1733.26,0.00015616,2]
[334040563,1722700248065,-500.0,0.00015616,2]
[334040565,1722700248076,-500.0,0.00015616,2]
[334040567,1722700248086,-500.0,0.00015616,2]
[334040568,1722700248096,-544.74,0.00015616,2]
[334040569,1722700248106,-500.0,0.00015616,2]
[334040570,1722700248116,-1373.13,0.00015616,2]
[334040571,1722700248126,-500.0,0.00015616,2]
[334040572,1722700248136,-500.0,0.00015616,2]
[334040573,1722700248146,-500.0,0.00015616,2]
[334040574,1722700248156,-500.0,0.00015616,2]
[334040575,1722700248167,-500.0,0.00015616,2]
[334040576,1722700248177,-500.0,0.00015616,2]
[334040577,1722700248187,-500.0,0.00015616,2]
[334040578,1722700248198,-500.0,0.00015616,2]
[334040579,1722700248209,-500.0,0.00015616,2]
[334040580,1722700248220,-560.01,0.00015616,2]
[334040581,1722700248230,-536.02,0.00015616,2]
[334040582,1722700248240,-438.09734793,0.00015616,2]
[334040583,1722700248249,-1869.78,0.00015616,2]
[334040584,1722700248261,-628.06688974,0.00015616,2]
[334040585,1722700248270,-500.0,0.00015616,2]
[334040586,1722700248282,-1161.84,0.00015616,2]
[334040587,1722700248292,-500.0,0.00015616,2]
[334040588,1722700248301,-500.0,0.00015616,2]
[334040589,1722700248315,-763.63,0.00015616,2]
[334040590,1722700248325,-500.0,0.00015616,2]
[334040591,1722700248337,-515.84,0.00015616,2]
[334040592,1722700248347,-519.62,0.00015616,2]
[334040593,1722700248358,-500.0,0.00015616,2]
[334040594,1722700248368,-500.0,0.00015616,2]
[334040595,1722700248377,-500.0,0.00015616,2]
[334040596,1722700248389,-500.0,0.00015616,2]
[334040597,1722700248399,-500.0,0.00015616,2]
[334040598,1722700248409,-500.0,0.00015616,2]
[334040599,1722700248419,-1137.92,0.00015616,2]
[334040600,1722700248429,-500.0,0.00015616,2]
[334040601,1722700248449,-1049.92,0.00015616,2]
[334040602,1722700248459,-1544.75,0.00015706,2]
[334040603,1722700248469,-13924.53920751,0.00015707,2]
[334040604,1722700248568,-16075.46079249,0.00015707,2]
[334040605,1722700248578,-18505.4829842,0.00015708,2]
[334040606,1722700248589,-1162.60351639,0.00015708,2]
[334040607,1722700248601,-13437.02444576,0.00015708,2]
[334040608,1722700248610,-1794.3605686,0.00015708,2]
[334040609,1722700248620,-3091.09789429,0.00015708,2]
[334040610,1722700248630,-1714.84159531,0.0001571,2]
[334040611,1722700248639,-4150.26930883,0.0001571,2]
[334040612,1722700248649,-1763.21721545,0.0001571,2]
[334040613,1722700248659,-400.0,0.0001587,2]
[334040614,1722700248669,-500.0,0.0001589,2]
[334040615,1722700248679,-305.64167868,0.0001589,2]
[334040619,1722700250112,-194.35832132,0.0001589,2]
[334040620,1722700250122,-500.0,0.0001589,2]
[334040622,1722700250132,-500.0,0.0001589,2]
[334040624,1722700250143,-200.45275992,0.0001589,2]
[334040625,1722700250152,-500.0,0.0001589,2]
[334040626,1722700250162,-594.51,0.0001589,2]
[334040628,1722700250172,-856.72,0.0001589,2]
[334040630,1722700250182,-541.83,0.0001589,2]
[334040632,1722700250192,-1733.26,0.0001589,2]
[334040634,1722700250201,-500.0,0.0001589,2]
[334040636,1722700250211,-500.0,0.0001589,2]
[334040638,1722700250220,-500.0,0.0001589,2]
[334040639,1722700250230,-544.74,0.0001589,2]
[334040641,1722700250240,-500.0,0.0001589,2]
[334040643,1722700250251,-1373.13,0.0001589,2]
[334040645,1722700250261,-500.0,0.0001589,2]
[334040647,1722700250272,-500.0,0.0001589,2]
[334040649,1722700250282,-500.0,0.0001589,2]
[334040651,1722700250291,-500.0,0.0001589,2]
[334040653,1722700250301,-500.0,0.0001589,2]
[334040655,1722700250311,-500.0,0.0001589,2]
[334040657,1722700250322,-536.02,0.0001589,2]
[334040658,1722700250332,-1869.78,0.0001589,2]
[334040660,1722700250341,-500.0,0.0001589,2]
[334040662,1722700250350,-1161.84,0.0001589,2]
[334040664,1722700250360,-500.0,0.0001589,2]
[334040666,1722700250369,-500.0,0.0001589,2]
[334040668,1722700250380,-763.63,0.0001589,2]
[334040670,1722700250391,-500.0,0.0001589,2]
[334040672,1722700250401,-519.62,0.0001589,2]
[334040674,1722700250411,-593.62,0.0001589,2]
[334040676,1722700250421,-500.0,0.0001589,2]
[334040678,1722700250431,-500.0,0.0001589,2]
[334040679,1722700250441,-500.0,0.0001589,2]
[334040681,1722700250451,-500.0,0.0001589,2]
[334040683,1722700250460,-1137.92,0.0001589,2]
[334040684,1722700250470,-500.0,0.0001589,2]
[334040685,1722700250480,-1544.75,0.0001595,2]
[334040686,1722700250489,-4105.27476996,0.00015954,2]
[334040687,1722700250499,-4105.27476996,0.00015954,2]
[334040688,1722700250509,-150.0,0.00016,2]
[334040689,1722700250518,-1332.18536403,0.00016038,2]
[334040690,1722700250528,-42335.82801524,0.00016095,2]
[334040691,1722700250539,-35008.31184118,0.00016095,2]
[334040692,1722700250549,-488.39,0.00016164,2]
[334040693,1722700250559,-500.0,0.00016164,2]
[334040694,1722700250572,-451.7,0.00016164,2]
[334040695,1722700250581,-500.0,0.00016164,2]
[334040696,1722700250591,-500.0,0.00016164,2]
[334040697,1722700250600,-594.51,0.00016164,2]
[334040698,1722700250609,-856.72,0.00016164,2]
[334040699,1722700250618,-541.83,0.00016164,2]
[334040700,1722700250629,-1733.26,0.00016164,2]
[334040701,1722700250638,-500.0,0.00016164,2]
[334040702,1722700250648,-500.0,0.00016164,2]
[334040703,1722700250658,-500.0,0.00016164,2]
[334040704,1722700250668,-544.74,0.00016164,2]
[334040705,1722700250678,-500.0,0.00016164,2]
[334040706,1722700250688,-1373.13,0.00016164,2]
[334040707,1722700250698,-500.0,0.00016164,2]
[334040708,1722700250707,-500.0,0.00016164,2]
[334040709,1722700250717,-500.0,0.00016164,2]
[334040710,1722700250727,-500.0,0.00016164,2]
[334040711,1722700250736,-500.0,0.00016164,2]
[334040712,1722700250745,-536.02,0.00016164,2]
[334040713,1722700250755,-1869.78,0.00016164,2]
[334040714,1722700250765,-500.0,0.00016164,2]
[334040715,1722700250775,-1161.84,0.00016164,2]
[334040716,1722700250785,-500.0,0.00016164,2]
[334040717,1722700250794,-151.0,0.00016164,2]
[334040718,1722700250804,-500.0,0.00016164,2]
[334040719,1722700250815,-763.63,0.00016164,2]
[334040720,1722700250824,-151.225038,0.00016164,2]
[334040721,1722700250833,-500.0,0.00016164,2]
[334040722,1722700250842,-151.0,0.00016164,2]
[334040723,1722700250852,-519.62,0.00016164,2]
[334040724,1722700250861,-500.0,0.00016164,2]
[334040725,1722700250870,-500.0,0.00016164,2]
[334040726,1722700250880,-500.0,0.00016164,2]
[334040727,1722700250889,-500.0,0.00016164,2]
[334040728,1722700250899,-1137.92,0.00016164,2]
[334040729,1722700250910,-500.0,0.00016164,2]
[334040730,1722700250923,-256.32161214,0.00016347,2]
[334040731,1722700250932,-1544.75,0.00016437,2]
[334040732,1722700250941,-500.0,0.00016438,2]
[334040733,1722700250953,-500.0,0.00016438,2]
[334040734,1722700250963,-323.07,0.00016438,2]
[334040735,1722700250973,-594.51,0.00016438,2]
[334040736,1722700250983,-208.51,0.00016438,2]
[334040737,1722700250997,-856.72,0.00016438,2]
[334040738,1722700251009,-541.83,0.00016438,2]
[334040739,1722700251021,-1733.26,0.00016438,2]
[334040740,1722700251031,-500.0,0.00016438,2]
[334040741,1722700251041,-585.87,0.00016438,2]
[334040742,1722700251052,-267.15,0.00016438,2]
[334040743,1722700251063,-544.74,0.00016438,2]
[334040744,1722700251078,-500.0,0.00016438,2]
[334040745,1722700251091,-1373.13,0.00016438,2]
[334040746,1722700251102,-500.0,0.00016438,2]
[334040747,1722700251112,-500.0,0.00016438,2]
[334040748,1722700251122,-500.0,0.00016438,2]
[334040749,1722700251132,-500.0,0.00016438,2]
[334040750,1722700251141,-500.0,0.00016438,2]
[334040751,1722700251151,-536.02,0.00016438,2]
[334040752,1722700251161,-1869.78,0.00016438,2]
[334040753,1722700251171,-500.0,0.00016438,2]
[334040754,1722700251180,-1161.84,0.00016438,2]
[334040755,1722700251190,-500.0,0.00016438,2]
[334040756,1722700251199,-500.0,0.00016438,2]
[334040757,1722700251209,-763.63,0.00016438,2]
[334040758,1722700251219,-500.0,0.00016438,2]
[334040759,1722700251228,-519.62,0.00016438,2]
[334040760,1722700251238,-494.91736854,0.00016438,2]
[334040761,1722700251247,-500.0,0.00016438,2]
[334040762,1722700251257,-257.04015236,0.00016438,2]
[334040763,1722700251266,-500.0,0.00016438,2]
[334040764,1722700251275,-1137.92,0.00016438,2]
[334040765,1722700251285,-500.0,0.00016712,2]
[334040766,1722700251294,-500.0,0.00016712,2]
[334040767,1722700251303,-594.51,0.00016712,2]
[334040768,1722700251317,-856.72,0.00016712,2]
[334040769,1722700251327,-541.83,0.00016712,2]
[334040770,1722700251337,-1733.26,0.00016712,2]
[334040771,1722700251346,-500.0,0.00016712,2]
[334040772,1722700251356,-544.74,0.00016712,2]
[334040773,1722700251365,-500.0,0.00016712,2]
[334040774,1722700251375,-1373.13,0.00016712,2]
[334040775,1722700251384,-500.0,0.00016712,2]
[334040776,1722700251395,-476.65169651,0.00016712,2]
[334040777,1722700251405,-531.94852642,0.00016712,2]
[334040778,1722700251417,-500.0,0.00016712,2]
[334040779,1722700251428,-500.0,0.00016712,2]
[334040780,1722700251439,-536.02,0.00016712,2]
[334040781,1722700251452,-1869.78,0.00016712,2]
[334040782,1722700251463,-569.51,0.00016712,2]
[334040783,1722700251473,-1161.84,0.00016712,2]
[334040784,1722700251483,-500.0,0.00016712,2]
[334040785,1722700251492,-500.0,0.00016712,2]
[334040786,1722700251502,-763.63,0.00016712,2]
[334040787,1722700251512,-500.0,0.00016712,2]
[334040788,1722700251522,-519.62,0.00016712,2]
[334040789,1722700251531,-500.0,0.00016712,2]
[334040790,1722700251540,-500.0,0.00016712,2]
[334040791,1722700251550,-1137.92,0.00016712,2]
[334040792,1722700251561,-232.98,0.00016986,2]
[334040793,1722700251574,-500.0,0.00016986,2]
[334040794,1722700251663,-594.51,0.00016986,2]
[334040795,1722700251673,-856.72,0.00016986,2]
[334040796,1722700251682,-541.83,0.00016986,2]
[334040797,1722700251692,-1733.26,0.00016986,2]
[334040798,1722700251702,-500.0,0.00016986,2]
[334040799,1722700251711,-544.74,0.00016986,2]
[334040800,1722700251721,-500.0,0.00016986,2]
[334040801,1722700251731,-1373.13,0.00016986,2]
[334040802,1722700251741,-647.69,0.00016986,2]
[334040803,1722700251750,-500.0,0.00016986,2]
[334040804,1722700251760,-500.0,0.00016986,2]
[334040805,1722700251769,-536.02,0.00016986,2]
[334040806,1722700251778,-1869.78,0.00016986,2]
[334040807,1722700251788,-1161.84,0.00016986,2]
[334040808,1722700251797,-500.0,0.00016986,2]
[334040809,1722700251807,-500.0,0.00016986,2]
[334040810,1722700251821,-763.63,0.00016986,2]
[334040811,1722700251835,-500.0,0.00016986,2]
[334040812,1722700251845,-519.62,0.00016986,2]
[334040813,1722700251857,-500.0,0.00016986,2]
[334040814,1722700251867,-500.0,0.00016986,2]
[334040815,1722700251877,-1137.92,0.00016986,2]
[334040816,1722700251889,-154.71377951,0.00017,2]
[334040817,1722700251899,-5826.76531367,0.00017181,2]
[334040818,1722700251911,-972.51718685,0.00017219,2]
[334040819,1722700251922,-610.49,0.0001726,2]
[334040820,1722700251931,-594.51,0.0001726,2]
[334040821,1722700251941,-856.72,0.0001726,2]
[334040822,1722700251953,-541.83,0.0001726,2]
[334040823,1722700251962,-1733.26,0.0001726,2]
[334040824,1722700251974,-500.0,0.0001726,2]
[334040825,1722700251986,-544.74,0.0001726,2]
[334040826,1722700251999,-500.0,0.0001726,2]
[334040827,1722700252009,-1373.13,0.0001726,2]
[334040828,1722700252019,-477.52730446,0.0001726,2]
[334040829,1722700252031,-500.0,0.0001726,2]
[334040830,1722700252041,-536.02,0.0001726,2]
[334040831,1722700252052,-1869.78,0.0001726,2]
[334040832,1722700252068,-1161.84,0.0001726,2]
[334040833,1722700252078,-500.0,0.0001726,2]
[334040834,1722700252089,-431.97912815,0.0001726,2]
[334040835,1722700252101,-763.63,0.0001726,2]
[334040836,1722700252111,-257.97348976,0.0001726,2]
[334040837,1722700252122,-519.62,0.0001726,2]
[334040838,1722700252133,-500.0,0.0001726,2]
[334040839,1722700252142,-500.0,0.0001726,2]
[334040840,1722700252152,-1137.92,0.0001726,2]
[334040841,1722700252163,-5826.76531367,0.0001733,2]
[334040842,1722700252172,-1544.75,0.00017369,2]
[334040843,1722700252182,-1544.75,0.00017533,2]
[334040844,1722700252192,-594.51,0.00017534,2]
[334040845,1722700252201,-856.72,0.00017534,2]
[334040846,1722700252210,-541.83,0.00017534,2]
[334040847,1722700252220,-1733.26,0.00017534,2]
[334040848,1722700252231,-500.0,0.00017534,2]
[334040849,1722700252241,-544.74,0.00017534,2]
[334040850,1722700252252,-500.0,0.00017534,2]
[334040851,1722700252262,-1373.13,0.00017534,2]
[334040852,1722700252273,-500.0,0.00017534,2]
[334040853,1722700252283,-536.02,0.00017534,2]
[334040854,1722700252295,-1869.78,0.00017534,2]
[334040855,1722700252306,-1161.84,0.00017534,2]
[334040856,1722700252323,-500.0,0.00017534,2]
[334040857,1722700252335,-763.63,0.00017534,2]
[334040858,1722700252346,-519.62,0.00017534,2]
[334040859,1722700252357,-500.0,0.00017534,2]
[334040860,1722700252367,-633.20242671,0.00017534,2]
[334040861,1722700252376,-527.08959765,0.00017534,2]
[334040862,1722700252393,-610.83040235,0.00017534,2]
[334040863,1722700252403,-5826.76531367,0.00017567,2]
[334040864,1722700252414,-151.0,0.00017729,2]
[334040865,1722700252425,-594.51,0.00017808,2]
[334040866,1722700252434,-856.72,0.00017808,2]
[334040867,1722700252445,-541.83,0.00017808,2]
[334040868,1722700252455,-1733.26,0.00017808,2]
[334040869,1722700252464,-500.0,0.00017808,2]
[334040870,1722700252475,-544.74,0.00017808,2]
[334040871,1722700252484,-500.0,0.00017808,2]
[334040872,1722700252493,-1373.13,0.00017808,2]
[334040873,1722700252503,-493.77902182,0.00017808,2]
[334040874,1722700252512,-536.02,0.00017808,2]
[334040875,1722700252522,-1869.78,0.00017808,2]
[334040876,1722700252532,-1161.84,0.00017808,2]
[334040877,1722700252541,-500.0,0.00017808,2]
[334040878,1722700252551,-763.63,0.00017808,2]
[334040879,1722700252562,-519.62,0.00017808,2]
[334040880,1722700252575,-151.0,0.00017808,2]
[334040881,1722700252585,-500.0,0.00017808,2]
[334040882,1722700252594,-151.830209,0.00017808,2]
[334040883,1722700252603,-151.0,0.00017808,2]
[334040884,1722700252612,-1137.92,0.00017808,2]
[334040885,1722700252622,-20756.61942757,0.0001784,2]
[334040886,1722700252631,-20756.61942757,0.0001784,2]
[334040887,1722700252640,-507.79993513,0.0001784,2]
[334040888,1722700252842,-500.0,0.00013698,2]
[334040889,1722700252852,-500.0,0.00013972,2]
[334040890,1722700252862,-500.0,0.00014246,2]
[334040891,1722700252871,-500.0,0.0001452,2]
[334040892,1722700252881,-413.73440189,0.00014692,2]
[334040893,1722700252890,-600.80373264,0.00014692,2]
[334040894,1722700252900,-163.05415597,0.00014692,2]
[334040895,1722700252913,-3140.12613647,0.00014692,2]
[334040896,1722700252925,-2953.44939621,0.00014692,2]
[334040897,1722700252936,-1473.00074673,0.00014692,2]
[334040898,1722700253254,-500.0,0.00013698,2]
[334040899,1722700253263,-500.0,0.00013698,2]
[334040900,1722700253273,-6291.27093511,0.0001469,2]
[334040901,1722700253309,-23708.72906489,0.0001469,2]
[334040902,1722700253323,-8720.44354835,0.00014692,2]
[334040903,1722700253332,-779.59941017,0.00014692,2]
[334040904,1722700253342,-532.07679789,0.00014692,2]
[334040905,1722700253351,-2108.7693428,0.00014692,2]
[334040906,1722700253360,-533.87977422,0.00014692,2]
[334040907,1722700253369,-664.18424721,0.00014692,2]
[334040908,1722700253378,-204.08111002,0.00014692,2]
[334040909,1722700253388,-180.46429061,0.00014692,2]
[334040910,1722700253397,-500.0,0.00014794,2]
[334040911,1722700253407,-500.0,0.00015068,2]
[334040912,1722700253416,-500.0,0.00015068,2]
[334040913,1722700253500,-500.0,0.00015342,2]
[334040914,1722700253510,-500.0,0.00015342,2]
[334040915,1722700253519,-500.0,0.00015616,2]
[334040916,1722700253529,-346.05,0.00015616,2]
[334040917,1722700253538,-1049.92,0.0001589,2]
[334040918,1722700253548,-500.0,0.0001589,2]
[334040919,1722700253558,-1332.18536403,0.00015954,2]
[334040920,1722700253571,-1049.92,0.00016164,2]
[334040921,1722700253580,-500.0,0.00016164,2]
[334040922,1722700253589,-500.0,0.00016438,2]
[334040923,1722700253599,-1049.92,0.00016438,2]
[334040924,1722700253607,-500.0,0.00016438,2]
[334040925,1722700253616,-1049.92,0.00016712,2]
[334040926,1722700253626,-500.0,0.00016712,2]
[334040927,1722700253635,-1049.92,0.00016986,2]
[334040928,1722700253644,-500.0,0.00016986,2]
[334040929,1722700253654,-1049.92,0.0001726,2]
[334040930,1722700253663,-511.67872419,0.0001726,2]
[334040931,1722700253673,-1049.92,0.00017534,2]
[334040932,1722700253682,-1049.92,0.00017808,2]
[334040933,1722700253692,-3314.41402622,0.0001784,2]
[334040934,1722700253701,-600.0,0.00017873,2]
[334040935,1722700253711,-1544.75,0.0001798,2]
[334040936,1722700253720,-5826.76531367,0.00018021,2]
[334040937,1722700253730,-594.51,0.00018082,2]
[334040938,1722700253739,-856.72,0.00018082,2]
[334040939,1722700253749,-541.83,0.00018082,2]
[334040940,1722700253759,-1733.26,0.00018082,2]
[334040941,1722700253770,-500.0,0.00018082,2]
[334040942,1722700253779,-544.74,0.00018082,2]
[334040943,1722700253789,-500.0,0.00018082,2]
[334040944,1722700253799,-1373.13,0.00018082,2]
[334040945,1722700253809,-536.02,0.00018082,2]
[334040946,1722700253820,-1869.78,0.00018082,2]
[334040947,1722700253830,-1161.84,0.00018082,2]
[334040948,1722700253839,-500.0,0.00018082,2]
[334040949,1722700253848,-763.63,0.00018082,2]